Cogmind - Beta 17 @@@ ROGUE MODE // 2026.07.04 @ 23:13:12 Player: 5H-4SQ Result: Destroyed by G-47 Trooper with Particle Gun Performance ------------- Evolutions (1) 500 Regions Visited (6) 1200 Robots Destroyed (20) 100 Value Destroyed (374) 374 Prototype IDs (23) 460 Alien Tech Used (0) 0 Bonus (300) 300 TOTAL SCORE: 2934 Bonus ------- Aligned with FarCom 300 Cogmind --------- Core Integrity 0/400 Matter 272/300 Energy 42/100 System Corruption 0% Temperature Cool (50) Movement Hovering (150) Ox1 Location -8/Mines Parts ------- > --- POWER (1) -------- (None) > --- PROPULSION (4) --- Combat Airjet > --- UTILITY (2) ------ Small Storage Unit > --- WEAPON (2) ------- Guided Plasma Cannon > --- INVENTORY (8) ---- Cooling System High-capacity Battery (250) High-capacity Matter Pod (200) Authchip [Power] Beam Cannon Assault Rifle Mining Laser Peak State ------------ > --- POWER ------------ Light Ion Engine > --- PROPULSION ------- Combat Airjet Flight Unit Flight Unit VTOL Module > --- UTILITY ---------- Cooling System Small Storage Unit > --- WEAPON ----------- Shotgun > --- INVENTORY -------- High-capacity Battery High-capacity Matter Pod Transport Network Coupler Authchip [Power] Beam Cannon Guided Plasma Cannon Assault Rifle Mining Laser [Rating: 16] Favorites ----------- Power Ion Engine Engine Ion Engine Propulsion Aluminum Leg Leg Aluminum Leg Wheel Wheel Hover Unit Combat Airjet Flight Unit VTOL Module Utility Small Storage Unit Device Seismic Detector Storage Small Storage Unit Weapon Medium Laser Energy Gun Medium Laser Energy Cannon Guided Plasma Cannon Ballistic Gun Assault Rifle Build | -11 -10 -10 -9 -9 -9 -8 ------- Run | Yrd Mat Min Mat Min Exi Min Slots Evolved 2 | . . . 2 . . . Power . | . . . . . . . Propulsion 2 | . . . 2 . . . Utility . | . . . . . . . Weapon . | . . . . . . . Parts Attached 21 | 7 2 . 4 3 1 4 Power 4 | 1 1 . 1 . . 1 Engine 4 | 1 1 . 1 . . 1 Core . | . . . . . . . Reactor . | . . . . . . . Propulsion 9 | 2 1 . 2 2 . 2 Treads . | . . . . . . . Leg 3 | 2 1 . . . . . Wheel 2 | . . . 2 . . . Hover 1 | . . . . 1 . . Flight 3 | . . . . 1 . 2 Utility 3 | 2 . . . . 1 . Device 2 | 1 . . . . 1 . Storage 1 | 1 . . . . . . Processor . | . . . . . . . Hackware . | . . . . . . . Protection . | . . . . . . . Artifact . | . . . . . . . Weapon 5 | 2 . . 1 1 . 1 Energy Gun 1 | 1 . . . . . . Energy Cannon 1 | . . . . . . 1 Ballistic Gun 3 | 1 . . 1 1 . . Ballistic Cannon . | . . . . . . . Launcher . | . . . . . . . Special Weapon . | . . . . . . . Impact Weapon . | . . . . . . . Slashing Weapon . | . . . . . . . Piercing Weapon . | . . . . . . . Special Melee Weapon . | . . . . . . . Unidentified Prototypes . | . . . . . . . Parts Lost 11 | . . . 9 . . 2 Power 3 | . . . 2 . . 1 Propulsion 4 | . . . 4 . . . Utility 1 | . . . 1 . . . Weapon 3 | . . . 2 . . 1 Highest Loss Streak 5 | . . . 5 . . 2 To Critical Strikes 1 | . . . . . . 1 Average Backups 6 | 2 5 7 7 7 7 7 Power . | . 1 1 . . . . Propulsion . | . 1 1 . . . . Utility 2 | . . 2 3 4 4 4 Weapon 3 | 1 2 3 3 3 3 3 Tool/Special . | . . . . . . . Unused Backups 7 | . . . 1 . . 6 Power . | . . . . . . . Propulsion . | . . . . . . . Utility 4 | . . . . . . 4 Weapon 3 | . . . 1 . . 2 Tool/Special . | . . . . . . . Average Slot Usage (%) 64 | . 100 100 67 16 45 47 Engine 7 | . 14 14 7 . . 8 Leg 13 | . 28 28 18 . . . Wheel 1 | . . . 11 . . . Hover 2 | . . . . . 11 11 Flight 2 | . . . . 4 11 3 Device 6 | . 14 14 1 . 1 2 Storage 12 | . 14 14 11 11 11 11 Energy Gun 7 | . 14 14 10 . . . Ballistic Gun 9 | . 14 14 7 . 11 10 Peak Build Rating 16 | 7 7 8 11 11 13 16 Average Rating 7 | 5 7 7 7 3 11 10 On Entrance 6 | . 7 7 8 2 11 13 Avg Prop Armor Cover (%) 9 | . . . 14 9 5 . Naked Turns . | . . . . . . . Heaviest Build 16 | 13 15 15 16 8 10 15 Greatest Support 20 | 20 20 20 20 12 12 12 Greatest Overweight (x) 3 | . . . 3 1 . 3 Average Overweight (x) . | . . . . . . . Largest Inventory Capacity 8 | 8 8 8 8 8 8 8 Average Capacity 7 | 7 8 8 8 8 8 8 Most Carried 8 | 4 8 8 8 8 8 8 Average Carried 6 | 2 5 7 7 7 7 7 Final Capacity 8 | 8 8 8 8 8 8 8 Final Carried 8 | 4 7 8 7 7 8 7 Class Distribution -------------------- 100% | Mutant Dominant Class ---------------- Mutant | -10/Materials Mutant | -10/Mines Mutant | -9/Materials Mutant | -9/Mines Mutant | -9/Exiles Mutant | -8/Mines Resources | -11 -10 -10 -9 -9 -9 -8 ----------- Run | Yrd Mat Min Mat Min Exi Min Matter Collected 725 | 248 112 146 15 124 . 80 Remotely . | . . . . . . . Salvage Created 527 | 109 183 80 15 . . 140 Parts 47 | 17 12 2 1 . . 15 Haulers Intercepted 1 | . 1 . . . . . Recyclers Shooed . | . . . . . . . Parts Field Recycled . | . . . . . . . Retrieved Matter . | . . . . . . . Parts Self-Destructed . | . . . . . . . Prevented . | . . . . . . . Parts Restored . | . . . . . . . Kills | -11 -10 -10 -9 -9 -9 -8 ------- Run | Yrd Mat Min Mat Min Exi Min Combat Hostiles Destroyed 12 | . 4 2 1 . . 5 Guns 10 | . 4 2 1 . . 3 Cannons 2 | . . . . . . 2 Classes Destroyed 6 | 1 4 . . . . 1 Tunneler 5 | 5 . . . . . . Hauler 1 | . 1 . . . . . Watcher 2 | . 2 . . . . . Swarmer 7 | . 3 . 1 . . 3 Grunt 3 | . 1 2 . . . . Hunter 2 | . . . . . . 2 Best Kill Streak 7 | 4 7 1 1 . . 3 Combat Bots Only 3 | . 3 1 1 . . 3 Max Kills in Single Turn 1 | 1 1 1 1 . . 1 Gunslinging . | . . . . . . . Exploded . | . . . . . . . Melee . | . . . . . . . Uniques/NPCs Destroyed . | . . . . . . . Combat | -11 -10 -10 -9 -9 -9 -8 -------- Run | Yrd Mat Min Mat Min Exi Min Hostile Shots Fired 160 | . 32 15 73 . . 40 Missed 42 | . 8 3 21 . . 10 Hits 118 | . 24 12 52 . . 30 Melee 1 | . . . . . . 1 Projectile 117 | . 24 12 52 . . 29 AOE 1 | . . . 1 . . . Critical Strikes 2 | . . . 1 . . 1 Damage Taken 1534 | . 198 173 776 . . 387 Core 527 | . 25 97 321 . . 84 Absorbed by Shields . | . . . . . . . Core Remaining (%) 75 | 100 . 51 . . . . Volleys Fired 60 | 6 18 14 7 . . 15 Largest 2 | 2 2 2 2 . . 1 Hottest 120 | 70 70 70 73 . . 120 Shots Fired 105 | 12 36 28 14 . . 15 Gun 102 | 12 36 28 14 . . 12 Cannon 3 | . . . . . . 3 Launcher . | . . . . . . . Special . | . . . . . . . Kinetic 57 | 6 18 14 7 . . 12 Thermal 48 | 6 18 14 7 . . 3 Explosive . | . . . . . . . Electromagnetic . | . . . . . . . Robot Hit Streak 6 | 2 5 5 6 . . 4 Robot Miss Streak 4 | 3 3 2 1 . . 4 Penetration Max . | . . . . . . . Secondary Targets 1 | . 1 . . . . . Max Gunslinging Chain 1 | . 1 . . . . . Shots Hit Robots 63 | 5 23 20 5 . . 10 Core Hits 27 | 5 9 6 1 . . 6 Critical Kills . | . . . . . . . Critical Parts Destroyed . | . . . . . . . Critical Strikes 2 | . . 2 . . . . Burn 2 | . . 2 . . . . Melee Attacks . | . . . . . . . Impact . | . . . . . . . Slashing . | . . . . . . . Piercing . | . . . . . . . Sneak Attacks . | . . . . . . . Combat Hostiles . | . . . . . . . Follow-up Attacks . | . . . . . . . Damage Inflicted 869 | 64 322 259 50 . . 174 Guns 791 | 64 322 255 50 . . 100 Cannons 74 | . . . . . . 74 Explosions . | . . . . . . . Melee . | . . . . . . . Ramming 4 | . . 4 . . . . Kinetic 473 | 39 182 127 25 . . 100 Thermal 392 | 25 140 128 25 . . 74 Explosive . | . . . . . . . Electromagnetic . | . . . . . . . Impact . | . . . . . . . Slashing . | . . . . . . . Piercing . | . . . . . . . Highest Corruption . | . . . . . . . Average Corruption . | . . . . . . . Corruption Purged . | . . . . . . . Corruption Blocked . | . . . . . . . Overload Shots . | . . . . . . . Overflow Damage . | . . . . . . . Projectiles . | . . . . . . . Explosions . | . . . . . . . Melee . | . . . . . . . Knockbacks . | . . . . . . . Impact . | . . . . . . . Kinetic . | . . . . . . . Secondary . | . . . . . . . Self-Inflicted Damage . | . . . . . . . Shots . | . . . . . . . Rammed . | . . . . . . . Targets Rammed 1 | . . 1 . . . . Kicked 1 | . . 1 . . . . Crushed . | . . . . . . . Highest Temperature 192 | 27 93 171 35 . . 192 Average Temperature 48 | 10 42 67 15 . . 106 Received Heat Transfer 450 | . 12 102 291 . . 45 Siege Activations . | . . . . . . . Martial Activations . | . . . . . . . Shielding Activations . | . . . . . . . Robots Disrupted . | . . . . . . . Combat Hostiles . | . . . . . . . Robots Corrupted . | . . . . . . . Combat Hostiles . | . . . . . . . Parts Fried . | . . . . . . . Impact Corruptions . | . . . . . . . Robots Melted . | . . . . . . . Combat Hostiles . | . . . . . . . Parts Melted 1 | . . 1 . . . . Heat Transferred 1233 | 74 407 518 74 . . 160 Parts Sabotaged . | . . . . . . . Parts Stolen . | . . . . . . . Parts Stripped . | . . . . . . . Power Chain Reactions . | . . . . . . . Alert | -11 -10 -10 -9 -9 -9 -8 ------- Run | Yrd Mat Min Mat Min Exi Min Maximum Alert Level . | . . . . . . . Low Security (%) 100 | 100 100 100 100 100 . 100 Level 1 . | . . . . . . . Level 2 . | . . . . . . . Level 3 . | . . . . . . . Level 4 . | . . . . . . . Level 5 . | . . . . . . . High Security . | . . . . . . . Max Security . | . . . . . . . Peak Influence 84 | 15 84 45 65 4 . 70 Initial 27 | . . 27 . . . . Average 12 | 2 19 8 15 . . 36 Influence Increases 500 | 25 125 65 120 4 . 161 Destroy 0b10 Robot/C 240 | . 80 40 20 . . 100 Destroy 0b10 Robot/NC 40 | 25 15 . . . . . Destroy Leader 66 | . 16 10 10 . . 30 Successful Hack 18 | . 14 . . 4 . . Disable Machine 15 | . . . 15 . . . Destroy Structure 1 | . . . . . . 1 Lose Combat Pursuer 120 | . . 15 75 . . 30 Influence Decreases 439 | 25 54 136 120 4 . 100 Entered New Map 44 | . . 44 . . . . Time Decay 325 | 25 54 92 70 4 . 80 Lost Part 70 | . . . 50 . . 20 Squads Dispatched 1 | . 1 . . . . . Investigation . | . . . . . . . Extermination . | . . . . . . . Reinforcement 1 | . 1 . . . . . Assault . | . . . . . . . Garrison . | . . . . . . . Intercept . | . . . . . . . Searches Triggered . | . . . . . . . Construction Impeded . | . . . . . . . Haulers Reinforced . | . . . . . . . Active Scanning Responses . | . . . . . . . Cargo Convoy Interrupts . | . . . . . . . Stealth | -11 -10 -10 -9 -9 -9 -8 --------- Run | Yrd Mat Min Mat Min Exi Min Distress Signals 1 | . 1 . . . . . Communications Jammed . | . . . . . . . Distress Signals . | . . . . . . . Times Spotted 41 | . 7 3 21 . . 10 Peak Tracking Total 11 | . 4 2 11 . . 4 Tactical Retreats 4 | . . 1 2 . . 1 Traps | -11 -10 -10 -9 -9 -9 -8 ------- Run | Yrd Mat Min Mat Min Exi Min Traps Triggered . | . . . . . . . Indirectly . | . . . . . . . Trap Hack Attempts . | . . . . . . . Triggered . | . . . . . . . Disarmed . | . . . . . . . Reprogrammed . | . . . . . . . Reused . | . . . . . . . Traps Extracted . | . . . . . . . Installed . | . . . . . . . Triggered . | . . . . . . . Machines | -11 -10 -10 -9 -9 -9 -8 ---------- Run | Yrd Mat Min Mat Min Exi Min Machines Disabled 1 | . . . 1 . . . Max in Single Turn 1 | . . . 1 . . . Machines Repaired . | . . . . . . . Machines Dismantled . | . . . . . . . Machines Sabotaged . | . . . . . . . Overloaded Fab Kills . | . . . . . . . Hacking | -11 -10 -10 -9 -9 -9 -8 --------- Run | Yrd Mat Min Mat Min Exi Min Machines Accessed 5 | . 2 . 1 1 1 . Terminals 3 | . 1 . 1 1 . . Fabricators . | . . . . . . . Repair Stations . | . . . . . . . Recycling Units 1 | . 1 . . . . . Scanalyzers . | . . . . . . . Garrison Access . | . . . . . . . Total Hacks 10 | . 3 . 3 3 1 . Successful 7 | . 2 . 1 3 1 . Failed 3 | . 1 . 2 . . . Catastrophic . | . . . . . . . Database Lockouts . | . . . . . . . Manual 6 | . 2 . 3 . 1 . Terminals 8 | . 2 . 3 3 . . Fabricators . | . . . . . . . Repair Stations . | . . . . . . . Recycling Units 1 | . 1 . . . . . Scanalyzers . | . . . . . . . Garrison Access . | . . . . . . . Terminal Hacks 4 | . . . . 3 1 . Record 3 | . . . . 3 . . Proto ID Catalog 1 | . . . . . 1 . Fabricator Hacks . | . . . . . . . Repair Station Hacks . | . . . . . . . Recycling Unit Hacks 1 | . 1 . . . . . Report Inventory 1 | . 1 . . . . . Scanalyzer . | . . . . . . . Garrison Access Hacks . | . . . . . . . Unauthorized Hacks 2 | . 1 . 1 . . . Terminals 2 | . 1 . 1 . . . Botnet 2 | . 1 . 1 . . . Fabricators . | . . . . . . . Repair Stations . | . . . . . . . Recycling Units . | . . . . . . . Scanalyzers . | . . . . . . . Garrison Access . | . . . . . . . Data Cores Recovered . | . . . . . . . Used . | . . . . . . . Hacking Detections 4 | . 2 . 1 1 . . Full Trace Events . | . . . . . . . Feedback Events . | . . . . . . . Feedback Blocked . | . . . . . . . Robot Schematics Acquired . | . . . . . . . Robots Built . | . . . . . . . Authchips . | . . . . . . . Time . | . . . . . . . Total Robot Build Rating . | . . . . . . . Part Schematics Acquired . | . . . . . . . Parts Built . | . . . . . . . Authchips . | . . . . . . . Time . | . . . . . . . Total Part Build Rating . | . . . . . . . Part Studies Acquired . | . . . . . . . Parts Repaired . | . . . . . . . Time . | . . . . . . . Parts Recycled . | . . . . . . . Recycled Matter . | . . . . . . . Retrieved Matter . | . . . . . . . Retrieved Components . | . . . . . . . Parts Scanalyzed . | . . . . . . . Part Schematics Acquired . | . . . . . . . Parts Damaged . | . . . . . . . Bothacking | -11 -10 -10 -9 -9 -9 -8 ------------ Run | Yrd Mat Min Mat Min Exi Min Used RIF Installer . | . . . . . . . Robots Hacked . | . . . . . . . Non-combat . | . . . . . . . Combat . | . . . . . . . Robot Hacks Applied . | . . . . . . . Relay Couplers Released . | . . . . . . . Fabnet Peak Effective % . | . . . . . . . Robots Rewired . | . . . . . . . Allies Hacked . | . . . . . . . Hacks Repelled . | . . . . . . . Allies | -11 -10 -10 -9 -9 -9 -8 -------- Run | Yrd Mat Min Mat Min Exi Min Total Allies . | . . . . . . . Largest Group . | . . . . . . . Highest-Rated Group . | . . . . . . . Highest-Rated Ally . | . . . . . . . Total Orders . | . . . . . . . Ally Attacks . | . . . . . . . Total Damage . | . . . . . . . Kills . | . . . . . . . Allies Corrupted . | . . . . . . . Allies Melted . | . . . . . . . Intel | -11 -10 -10 -9 -9 -9 -8 ------- Run | Yrd Mat Min Mat Min Exi Min Active Infowar (turns) 703 | 19 263 391 30 . . . Seismic 703 | 19 263 391 30 . . . Robot Analysis Total . | . . . . . . . Derelict Logs Recovered 1 | . . . . 1 . . Drone Launches . | . . . . . . . Drone Recoveries . | . . . . . . . Exploration | -11 -10 -10 -9 -9 -9 -8 ------------- Run | Yrd Mat Min Mat Min Exi Min Turns Passed 1773 | 128 263 391 246 362 214 169 Spaces Moved 1509 | 82 169 269 231 348 262 148 Core 232 | 3 . . 15 214 . . Treads . | . . . . . . . Legs 584 | 79 169 269 67 . . . Wheels 149 | . . . 149 . . . Hover 438 | . . . . 30 262 146 Flight 106 | . . . . 104 . 2 Fastest Speed 50 | 50 120 120 80 80 80 80 Average Speed 101 | 117 120 120 94 102 80 85 Slowest Speed 280 | 120 120 120 200 115 80 280 Overloaded Moves . | . . . . . . . Propulsion Burnouts . | . . . . . . . Robots Hopped . | . . . . . . . Potential Cave-ins . | . . . . . . . Cave-ins Triggered . | . . . . . . . Exploration Rate (%) 44 | 4 33 80 30 77 62 22 Regions Visited 6 Branch Regions 4 Pre-discovered Areas 1 | . . . . 1 . . Known Exits Taken . | . . . . . . . Unknown Exits Taken 6 | 1 1 1 1 1 1 . Scrap Searched 4 | . . 1 . 2 . 1 Spaces Dug . | . . . . . . . Terrain Destroyed 1 | . . . . . . 1 Melee . | . . . . . . . Projectile 1 | . . . . . . 1 AOE . | . . . . . . . Terrain Rammed . | . . . . . . . Walls Destroyed . | . . . . . . . Machines Disabled . | . . . . . . . Actions | -11 -10 -10 -9 -9 -9 -8 --------- Run | Yrd Mat Min Mat Min Exi Min Total 1638 | 98 193 309 245 351 266 176 Wait 30 | . . 25 2 . . 3 Move 1503 | 81 168 268 230 347 261 148 Hop . | . . . . . . . Pick Up 13 | 4 3 1 1 1 2 1 Fast Attach 14 | 7 . . 1 2 1 3 Attach 5 | . . . 2 1 1 1 Detach . | . . . . . . . Swap 3 | . 2 . 1 . . . Drop 9 | . 2 . 1 . 1 5 Fire 60 | 6 18 14 7 . . 15 Melee . | . . . . . . . Ram . | . . . . . . . Kick 1 | . . 1 . . . . Crush . | . . . . . . . Escape Stasis . | . . . . . . . Rewire . | . . . . . . . Trap . | . . . . . . . Miscellaneous . | . . . . . . . Route ------- -11/Scrapyard -10/Materials -10/Mines -9/Materials -9/Mines (discovered 3 exits: [*Mat x2] / *Exi) -9/Exiles -8/Mines History --------- Turn | Location | Event 10 | -11/Scrapyard | Discovered new exit (range 16) 129 | -11/Scrapyard | Entered Materials 300 | -10/Materials | Discovered new exit (range 13) 315 | -10/Materials | Build established: Mutant 392 | -10/Materials | Entered Mines 765 | -10/Mines | Discovered new exit (range 9) 783 | -10/Mines | Entered Materials 783 | -9/Materials | Evolved 2 slots: Propulsion x2 983 | -9/Materials | Lost 5 parts (1p3n1w) 1013 | -9/Materials | Discovered new exit (range 16) 1016 | -9/Materials | Core integrity fell below 50% 1029 | -9/Materials | Entered Mines 1030 | -9/Mines | Assembled infested the area 1030 | -9/Mines | Core integrity fell below 20% 1132 | -9/Mines | Learned location of Storage (-9) 1271 | -9/Mines | Discovered new exit (range 14) 1305 | -9/Mines | Discovered new exit (range 7) 1317 | -9/Mines | Learned Materials security intel 1388 | -9/Mines | Discovered new exit (range 5) 1391 | -9/Mines | Entered Exiles 1412 | -9/Exiles | Met 8R-AWN 1425 | -9/Exiles | Met EX-HEX 1448 | -9/Exiles | Met EX-BIN 1458 | -9/Exiles | Aligned with FarCom system 1459 | -9/Exiles | Given EX-Vault access code 1477 | -9/Exiles | Opened EX-Vault 1484 | -9/Exiles | Found Gui. Plasma Cannon 1502 | -9/Exiles | Warned to stay clear of 0b10 Research branches 1522 | -9/Exiles | Met EX-DEC 1597 | -9/Exiles | Discovered new exit (range 12) 1605 | -9/Exiles | Left Exiles lab with Gui. Plasma Cannon 1605 | -9/Exiles | Entered Mines 1774 | -8/Mines | Destroyed by G-47 Trooper with Particle Gun Last Messages --------------- 01734_ K-01 Serf collects debris. 01736_ Slug penetrates Wall. 01736_ K-01 Serf collects debris. 01741_ Slug penetrates Wall. 01749_ Penetrated by Slug. 01751_ K-01 Serf collects debris. 01758_ Penetrated by Slug. 01758_ Lgt. Ion Engine destroyed. 01758_ K-01 Serf collects debris. 01759_ Slug penetrates Wall. 01761_ Critical hit (Destroy). 01761_ Shotgun destroyed. 01762_ Slug penetrates Wall. 01762_ H-55 Commando destroyed. 01762_ K-01 Serf collects debris. [Achievement: Thread The Needle Around The Corner] 01765_ K-01 Serf collects debris. 01768_ K-01 Serf cleans the Pulverizer. 01772_ K-01 Serf collects debris. Map ----- +----------------------------------------------------+ | ?????????????????????????????????????????????????? | | ?????????????????????????????????????????????????? | | ?????????????????????????????????????????????????? | | ?????????????????????????????????????????????????? | | ?????????????????????????????????????????????????? | | ?????????????????????????????????????????????????? | | ?????????????????????????????????????????????????? | | ?????????????????????????????????????????????????? | | ?????????????????????????????????????????????????? | | ?????????????????????????????????????????????????? | | ?????????????????????????????????????????????????? | | ?????????????????????????????????????????????????? | | ?????????????????????????????????????????????????? | | ?????????????????????????????????????????????????? | | ?????????????????????????????????????????????????? | | ?????????????????????????????????????????????????? | | ?????????????????????????????????????????????????? | | ?????????????????????????????????????????????????? | | ?????????????????????????????????????????????????? | | ?????????????????????????????????????????????????? | | ??????????????????????############???????????????? | | ??????????????????????# """" #???????????????? | | ??????????????????????# """" #???????????????? | | ??????????????????????# ! """" #???????????????? | | ??????????????????????#[%= #???????????????? | | ??????????????????????#t @k #???????????????? | | ??????????????????????#l #???????????????? | | ???????????????########g #???????????????? | | ???????????????# [g= #???????????????? | | ???????????????# ######;##########???????????????? | | ?????????# ##### #????###????????????????????????? | | ?????????# h #???????????????????????????????? | | ?????????####### #???????????????????????????????? | | ???????????????# #???????????????????????????????? | | ???????????????# #???????????????????????????????? | | ???????????????# #???????????????????????????????? | | ???????????????# ####????????????????????????????? | | ???????????##### # ###??????????????????????????? | | ??# ######## ##?????????????????????????? | | ??# #?????????????????????????? | | ??########## #### #?????????????????????????? | | ???????????# #??### ##?????????????????????????? | | ???????##### ######!##??????????????????????????? | | ???????# ##%#??????????? ##????????????? | | ???????# """ """ ## ######## #????????????? | | ???????# """"""" ## ???????? | | ???????# """%""" ## ########## ???????? | | ???????# " ## #???????????????????????????? | | ???????# """ """ ## #?########??????????????????? | | ???????# """ """ ## #?# =% #??????????????????? | +----------------------------------------------------+ Best States ------------- Heat Dissipation 50 Energy Generation 10 Energy Capacity 250 Matter Stores 300 Matter Capacity 300 Sight Range 16 Terrain Scan Density 10 Evasion (%) 55 Authchip Count 1 Item Schematics ----------------- None Robot Schematics ------------------ None Fabricated ------------ Nothing Repaired ---------- Nothing Studied --------- None Alien Tech Used ----------------- None Achievements -------------- Thread The Needle Around The Corner Challenges ------------ None Game ------ Seed BackupPropulsionBeamcaster Manual? 0 Play Time 00:17:11 Cumulative 58.5 hours Start 2026.07.04 @ 22:58:02 End 2026.07.04 @ 23:13:12 Sessions 1 Manual Loads 0 Difficulty Rogue Special Mode None Game No. 81 Rogue 81 Adventurer 0 Explorer 0 Win Type - Total 0 Types 0/0/0/0/0/0/0/0/0/0 Lore% 38 Gallery% 35 Achievement% 23 Wizard Run 0 Options --------- Layout 1 ASCII 0 Keyboard 0 Movement Numpad Keybinds 0 Fullscreen 1 Font 24/Smallcaps Map View 50x35 Zoom Use 0% Tactical HUD 1 Map Filters NONE Filters NONE Steam 1 RUN: 6d93d5eb-51dd-4e27-9c0d-5cfc3cd19721